Cogmind - Beta 17 @@@ ROGUE MODE // 2026.06.25 @ 15:38:41 Player: Cynthion21x Result: Destroyed by N2-H9T(R) with Subdweller Machine Gun Performance ------------- Evolutions (0) 0 Regions Visited (2) 400 Robots Destroyed (4) 20 Value Destroyed (70) 70 Prototype IDs (2) 40 Alien Tech Used (0) 0 Bonus (-36) -36 TOTAL SCORE: 494 Bonus ------- Friendly Fire -36 Cogmind --------- Core Integrity 0/250 Matter 267/300 Energy 80/100 System Corruption 0% Temperature Hot (231) Movement Core (400) Ox7 Location -10/Subcaves Parts ------- > --- POWER (1) -------- (None) > --- PROPULSION (2) --- (None) > --- UTILITY (2) ------ Large Storage Unit > --- WEAPON (2) ------- Grenade Launcher > --- INVENTORY (15) --- Aluminum Leg Aluminum Leg Compact Wheel Scrap Shield Small Laser Battle Cannon Peak State ------------ > --- POWER ------------ Light Ion Engine > --- PROPULSION ------- Light Treads Light Treads > --- UTILITY ---------- Disposable Heat Sink Large Storage Unit > --- WEAPON ----------- Light Assault Rifle Enhanced Flamer > --- INVENTORY -------- Aluminum Leg Aluminum Leg Compact Wheel Scrap Shield Small Laser Battle Cannon Grenade Launcher [Rating: 11] Favorites ----------- Power Light Ion Engine Engine Light Ion Engine Propulsion Light Treads Treads Light Treads Utility Large Storage Unit Device Disposable Heat Sink Storage Large Storage Unit Weapon Light Assault Rifle Energy Gun Small Laser Ballistic Gun Light Assault Rifle Launcher Grenade Launcher Special Weapon Enhanced Flamer Build | -11 -10 -10 ------- Run | Yrd Mat Sub Slots Evolved . | . . . Power . | . . . Propulsion . | . . . Utility . | . . . Weapon . | . . . Parts Attached 9 | 5 1 3 Power 1 | 1 . . Engine 1 | 1 . . Core . | . . . Reactor . | . . . Propulsion 2 | 2 . . Treads 2 | 2 . . Leg . | . . . Wheel . | . . . Hover . | . . . Flight . | . . . Utility 2 | . 1 1 Device 1 | . . 1 Storage 1 | . 1 . Processor . | . . . Hackware . | . . . Protection . | . . . Artifact . | . . . Weapon 4 | 2 . 2 Energy Gun 1 | 1 . . Energy Cannon . | . . . Ballistic Gun 1 | 1 . . Ballistic Cannon . | . . . Launcher 1 | . . 1 Special Weapon 1 | . . 1 Impact Weapon . | . . . Slashing Weapon . | . . . Piercing Weapon . | . . . Special Melee Weapon . | . . . Unidentified Prototypes . | . . . Parts Lost 6 | . . 6 Power 1 | . . 1 Propulsion 2 | . . 2 Utility 1 | . . 1 Weapon 2 | . . 2 Highest Loss Streak 6 | . . 6 To Critical Strikes . | . . . Average Backups 3 | 2 3 6 Power . | . . . Propulsion 2 | 2 3 3 Utility . | . . 1 Weapon . | . . 2 Tool/Special . | . . . Unused Backups 5 | . . 5 Power . | . . . Propulsion 3 | . . 3 Utility 1 | . . 1 Weapon 1 | . . 1 Tool/Special . | . . . Average Slot Usage (%) 82 | . 79 88 Engine 13 | . 14 13 Treads 28 | . 28 28 Device 1 | . . 4 Storage 10 | . 8 14 Energy Gun 9 | . 14 1 Ballistic Gun 14 | . 14 14 Launcher 2 | . . 7 Special Weapon 1 | . . 4 Peak Build Rating 11 | 5 6 11 Average Rating 5 | 4 5 7 On Entrance 3 | . 5 6 Avg Prop Armor Cover (%) . | . . . Naked Turns . | . . . Heaviest Build 27 | 5 25 27 Greatest Support 40 | 40 40 40 Greatest Overweight (x) . | . . . Average Overweight (x) . | . . . Largest Inventory Capacity 15 | 5 15 15 Average Capacity 9 | 5 11 15 Most Carried 10 | 5 5 10 Average Carried 4 | 2 3 7 Final Capacity 15 | 5 15 15 Final Carried 7 | 3 4 7 Class Distribution -------------------- 100% | Mutant Dominant Class ---------------- Mutant | -10/Materials Mutant | -10/Subcaves Resources | -11 -10 -10 ----------- Run | Yrd Mat Sub Matter Collected 259 | 90 26 143 Remotely . | . . . Salvage Created 67 | . 39 28 Parts 8 | . 4 4 Haulers Intercepted . | . . . Recyclers Shooed . | . . . Parts Field Recycled . | . . . Retrieved Matter . | . . . Parts Self-Destructed . | . . . Prevented . | . . . Parts Restored . | . . . Kills | -11 -10 -10 ------- Run | Yrd Mat Sub Combat Hostiles Destroyed 4 | . 3 1 Guns 3 | . 3 . AOE 1 | . . 1 Classes Destroyed 2 | . 1 1 Swarmer 3 | . 3 . Subdweller 1 | . . 1 Best Kill Streak 3 | . 3 1 Combat Bots Only 3 | . 3 1 Max Kills in Single Turn 1 | . 1 1 Gunslinging . | . . . Exploded 1 | . . 1 Melee . | . . . Uniques/NPCs Destroyed . | . . . Combat | -11 -10 -10 -------- Run | Yrd Mat Sub Hostile Shots Fired 62 | . 23 39 Missed 13 | . 5 8 Hits 49 | . 18 31 Projectile 49 | . 18 31 AOE 1 | . . 1 Critical Strikes 1 | . . 1 Damage Taken 876 | . 130 746 Core 265 | . 29 236 Absorbed by Shields . | . . . Core Remaining (%) 100 | 100 . . Volleys Fired 12 | . 8 4 Largest 2 | . 2 2 Hottest 60 | . 60 50 Shots Fired 21 | . 16 5 Gun 20 | . 16 4 Cannon . | . . . Launcher 1 | . . 1 Special . | . . . Kinetic 12 | . 8 4 Thermal 8 | . 8 . Explosive 1 | . . 1 Electromagnetic . | . . . Robot Hit Streak 6 | . 6 3 Robot Miss Streak 1 | . 1 1 Penetration Max . | . . . Secondary Targets 1 | . 1 . Max Gunslinging Chain 1 | . 1 . Shots Hit Robots 13 | . 10 3 Core Hits 5 | . 3 2 Critical Kills . | . . . Critical Parts Destroyed . | . . . Critical Strikes . | . . . Melee Attacks . | . . . Impact . | . . . Slashing . | . . . Piercing . | . . . Sneak Attacks . | . . . Combat Hostiles . | . . . Follow-up Attacks . | . . . Damage Inflicted 197 | . 95 102 Guns 119 | . 95 24 Cannons . | . . . Explosions 78 | . . 78 Melee . | . . . Ramming . | . . . Kinetic 74 | . 50 24 Thermal 45 | . 45 . Explosive 78 | . . 78 Electromagnetic . | . . . Impact . | . . . Slashing . | . . . Piercing . | . . . Highest Corruption . | . . . Average Corruption . | . . . Corruption Purged . | . . . Corruption Blocked . | . . . Overload Shots . | . . . Overflow Damage . | . . . Projectiles . | . . . Explosions . | . . . Melee . | . . . Knockbacks . | . . . Impact . | . . . Kinetic . | . . . Secondary . | . . . Self-Inflicted Damage 33 | . . 33 Shots 1 | . . 1 Rammed . | . . . Targets Rammed . | . . . Kicked . | . . . Crushed . | . . . Highest Temperature 264 | . 40 264 Average Temperature 39 | . 18 247 Received Heat Transfer 352 | . . 352 Siege Activations . | . . . Martial Activations . | . . . Shielding Activations . | . . . Robots Disrupted . | . . . Combat Hostiles . | . . . Robots Corrupted . | . . . Combat Hostiles . | . . . Parts Fried . | . . . Impact Corruptions . | . . . Robots Melted . | . . . Combat Hostiles . | . . . Parts Melted . | . . . Heat Transferred 100 | . 100 . Parts Sabotaged . | . . . Parts Stolen . | . . . Parts Stripped . | . . . Power Chain Reactions . | . . . Alert | -11 -10 -10 ------- Run | Yrd Mat Sub Maximum Alert Level . | . . . Low Security (%) 100 | 100 100 . Level 1 . | . . . Level 2 . | . . . Level 3 . | . . . Level 4 . | . . . Level 5 . | . . . High Security . | . . . Max Security . | . . . Peak Influence 60 | . 60 . Initial . | . . . Average 4 | . 9 . Influence Increases 72 | . 72 . Destroy 0b10 Robot/C 60 | . 60 . Destroy Leader 10 | . 10 . Successful Hack 2 | . 2 . Influence Decreases 72 | . 52 20 Entered New Map 10 | . . 10 Time Decay 62 | . 52 10 Squads Dispatched . | . . . Investigation . | . . . Extermination . | . . . Reinforcement . | . . . Assault . | . . . Garrison . | . . . Intercept . | . . . Searches Triggered . | . . . Construction Impeded . | . . . Haulers Reinforced . | . . . Active Scanning Responses . | . . . Cargo Convoy Interrupts . | . . . Stealth | -11 -10 -10 --------- Run | Yrd Mat Sub Distress Signals . | . . . Communications Jammed . | . . . Distress Signals . | . . . Times Spotted 17 | . 4 13 Peak Tracking Total 12 | . 3 12 Tactical Retreats . | . . . Traps | -11 -10 -10 ------- Run | Yrd Mat Sub Traps Triggered . | . . . Indirectly . | . . . Trap Hack Attempts . | . . . Triggered . | . . . Disarmed . | . . . Reprogrammed . | . . . Reused . | . . . Traps Extracted . | . . . Installed . | . . . Triggered . | . . . Machines | -11 -10 -10 ---------- Run | Yrd Mat Sub Machines Disabled . | . . . Max in Single Turn . | . . . Machines Repaired . | . . . Machines Dismantled . | . . . Machines Sabotaged . | . . . Overloaded Fab Kills . | . . . Hacking | -11 -10 -10 --------- Run | Yrd Mat Sub Machines Accessed 2 | . 2 . Terminals 2 | . 2 . Fabricators . | . . . Repair Stations . | . . . Recycling Units . | . . . Scanalyzers . | . . . Garrison Access . | . . . Total Hacks 9 | . 9 . Successful 6 | . 6 . Failed 3 | . 3 . Catastrophic . | . . . Database Lockouts . | . . . Manual 3 | . 3 . Terminals 9 | . 9 . Fabricators . | . . . Repair Stations . | . . . Recycling Units . | . . . Scanalyzers . | . . . Garrison Access . | . . . Terminal Hacks 6 | . 6 . Record 3 | . 3 . Prototype ID Bank 1 | . 1 . Alert Level 2 | . 2 . Fabricator Hacks . | . . . Repair Station Hacks . | . . . Recycling Unit Hacks . | . . . Scanalyzer . | . . . Garrison Access Hacks . | . . . Unauthorized Hacks . | . . . Terminals . | . . . Fabricators . | . . . Repair Stations . | . . . Recycling Units . | . . . Scanalyzers . | . . . Garrison Access . | . . . Data Cores Recovered . | . . . Used . | . . . Hacking Detections 2 | . 2 . Full Trace Events 2 | . 2 . Feedback Events . | . . . Feedback Blocked . | . . . Robot Schematics Acquired . | . . . Robots Built . | . . . Authchips . | . . . Time . | . . . Total Robot Build Rating . | . . . Part Schematics Acquired . | . . . Parts Built . | . . . Authchips . | . . . Time . | . . . Total Part Build Rating . | . . . Part Studies Acquired . | . . . Parts Repaired . | . . . Time . | . . . Parts Recycled . | . . . Recycled Matter . | . . . Retrieved Matter . | . . . Retrieved Components . | . . . Parts Scanalyzed . | . . . Part Schematics Acquired . | . . . Parts Damaged . | . . . Bothacking | -11 -10 -10 ------------ Run | Yrd Mat Sub Used RIF Installer . | . . . Robots Hacked . | . . . Non-combat . | . . . Combat . | . . . Robot Hacks Applied . | . . . Relay Couplers Released . | . . . Fabnet Peak Effective % . | . . . Robots Rewired . | . . . Allies Hacked . | . . . Hacks Repelled . | . . . Allies | -11 -10 -10 -------- Run | Yrd Mat Sub Total Allies . | . . . Largest Group . | . . . Highest-Rated Group . | . . . Highest-Rated Ally . | . . . Total Orders . | . . . Ally Attacks . | . . . Total Damage . | . . . Kills . | . . . Allies Corrupted . | . . . Allies Melted . | . . . Intel | -11 -10 -10 ------- Run | Yrd Mat Sub Active Infowar (turns) . | . . . Robot Analysis Total . | . . . Derelict Logs Recovered . | . . . Drone Launches . | . . . Drone Recoveries . | . . . Exploration | -11 -10 -10 ------------- Run | Yrd Mat Sub Turns Passed 806 | 322 323 161 Spaces Moved 375 | 98 187 90 Core 8 | 8 . . Treads 367 | 90 187 90 Legs . | . . . Wheels . | . . . Hover . | . . . Flight . | . . . Fastest Speed 50 | 50 160 160 Average Speed 157 | 151 160 160 Slowest Speed 160 | 160 160 160 Overloaded Moves . | . . . Propulsion Burnouts . | . . . Robots Hopped . | . . . Potential Cave-ins . | . . . Cave-ins Triggered . | . . . Exploration Rate (%) 14 | 8 27 8 Regions Visited 2 Branch Regions 1 Pre-discovered Areas . | . . . Known Exits Taken . | . . . Unknown Exits Taken 2 | 1 1 . Scrap Searched 3 | . . 3 Spaces Dug . | . . . Terrain Destroyed 12 | . . 12 Melee . | . . . Projectile . | . . . AOE 12 | . . 12 Terrain Rammed . | . . . Walls Destroyed . | . . . Machines Disabled . | . . . Actions | -11 -10 -10 --------- Run | Yrd Mat Sub Total 574 | 273 197 104 Wait 161 | 161 . . Move 373 | 97 186 90 Hop . | . . . Pick Up 15 | 9 2 4 Fast Attach . | . . . Attach 10 | 5 1 4 Detach 2 | . . 2 Swap . | . . . Drop 1 | 1 . . Fire 12 | . 8 4 Melee . | . . . Ram . | . . . Kick . | . . . Crush . | . . . Escape Stasis . | . . . Rewire . | . . . Trap . | . . . Miscellaneous . | . . . Route ------- -11/Scrapyard -10/Materials (discovered 3 exits: [*Mat] / [*Min] / [*Sub]) -10/Subcaves History --------- Turn | Location | Event 44 | -11/Scrapyard | Discovered new exit (range 14) 323 | -11/Scrapyard | Entered Materials 324 | -10/Materials | Build established: Mutant 467 | -10/Materials | Discovered new exit (range 12) 494 | -10/Materials | Discovered new exit (range 16) 622 | -10/Materials | Discovered new exit (range 11) 646 | -10/Materials | Entered Subcaves 647 | -10/Subcaves | Approached by a straggling Scientist 701 | -10/Subcaves | Disturbed a concealed Subdweller 796 | -10/Subcaves | Ambushed by swarm of Subdwellers 796 | -10/Subcaves | Ambushed by Subdwellers from Twisted Machinery 796 | -10/Subcaves | Ambushed by Subdwellers from Twisted Machinery 796 | -10/Subcaves | Ambushed by Subdwellers from Twisted Machinery 796 | -10/Subcaves | Ambushed by Subdwellers from Twisted Machinery 796 | -10/Subcaves | Ambushed by Subdwellers from Twisted Machinery 796 | -10/Subcaves | Ambushed by Subdwellers from Twisted Machinery 804 | -10/Subcaves | Core integrity fell below 50% 807 | -10/Subcaves | Core integrity fell below 20% 807 | -10/Subcaves | Destroyed by N2-H9T(R) with Subdweller Machine Gun Last Messages --------------- HV Slug penetrates Wall. Lgt. Ion Engine destroyed. 98-IHM(c): "I think it's somewhere southeast of here" CF-FZR(R) suffers critical hit (Destroy). CF-FZR(R) destroyed. VU-BUN(h) destroyed. Lgt. Treads destroyed. 9M-82O(R) destroyed. PG-B1V(g): "Sorry we're late! Had another grouchy Sub to deal with. Who's the new fellow?" Disposable Heat Sink destroyed. Critical hit (Meltdown: +280). Lgt. Treads destroyed. Lgt. Assault Rifle destroyed. [Achievement: There's More Where That Came From] KF-DAQ(R) suffers critical hit (Burn). KF-DAQ(R) destroyed. [Achievement: First Step to Greatness] Map ----- +----------------------------------------------------+ | ?????????????????????????????????????????????????? | | ?????????????????????????????????????????????????? | | ?????????????????????????????????????????????????? | | ?????????????????????????????????????????????????? | | ?????????????????????????????????????????????????? | | ?????????????????????????????????????????????????? | | ?????????????????????????????????????????????????? | | ?????????????????????????????????????????????????? | | ?????????????????????????????????????????????????? | | ?????????????????????????????????????????????????? | | ?????????????????????????????????????????????????? | | ?????????????????????????????????????????????????? | | ?????????????????????????????????????????????????? | | ?????????????????????????????????????? ??????????? | | ?????????????????????????????????????# ##????????? | | ?????????????????????????????????????# ?### ??## | | ??????????????????????????????????#### ? ## # | | ????????????? #???????????????????# ## | | ???????????? ???????????????##?# ? | | ???????????? ?????????????## ## ### | | ????????????? ####????????# #? | | ??????????????? ##???????# #?? # | | ?????????????????# ###?????# ##?# # | | ?????????????????# ####??# #?# | | ?????????????#????# !;;#### #?# | | ?????????????# ??#?##;;@|R;## ##### | | ??????????????#^ # #;]%!%R;; # | | ????????????????# RR%&*%R g | | ????????????????## %RR%! g | | ?????????????????## R R! # ##### | | ??????????????????## ;;; ;;;# ;#####???# | | ???????????????????# # ## #????????# | | ???????????????????# ######### ;;; #?????#### | | ?????????????????? ????????# ; ???#### | | ???????????????? ????????# ####??## #### | | ??????????????? #####?????????# ##?????# |" &#" # | | ?????????????? ???????????????####??????# * &&= # | | ????????????????????????????????????????# | &#" # | | ????????????????????????????????????????# #& "## | | ????????????????????????????????????????## # | | ?????????????????????????????????????????##### | | ??????????????????????????????????????????????# | | ??????????????????????????????????????????????# | | ??????????????????????????????????????????????# | | ??????????????????????????????????????????????### | | ????????????????????????????????????????????????## | | ?????????????????????????????????????????????????# | | ?????????????????????????????????????????????????? | | ?????????????????????????????????????????????????? | | ?????????????????????????????????????????????????? | +----------------------------------------------------+ Best States ------------- Heat Dissipation 25 Coolant Potential 50 Energy Generation 10 Energy Capacity 125 Matter Stores 277 Matter Capacity 300 Sight Range 16 Terrain Scan Density 10 Evasion (%) 40 Recoil Reduction 2 Item Schematics ----------------- None Robot Schematics ------------------ None Fabricated ------------ Nothing Repaired ---------- Nothing Studied --------- None Alien Tech Used ----------------- None Achievements -------------- First Step to Greatness There's More Where That Came From Challenges ------------ None Game ------ Seed TeslaGuidedDiverter Manual? 0 Play Time 00:22:19 Cumulative 0.3 hours Start 2026.06.25 @ 15:14:04 End 2026.06.25 @ 15:38:41 Sessions 1 Manual Loads 0 Difficulty Rogue Special Mode None Game No. 3 Rogue 3 Adventurer 0 Explorer 0 Win Type - Total 0 Types 0/0/0/0/0/0/0/0/0/0 Lore% 0 Gallery% 1 Achievement% 1 Wizard Run 0 Options --------- Layout 1 ASCII 0 Keyboard 0 Movement Arrows Keybinds 0 Fullscreen 1 Font 24/X11 Map View 50x35 Zoom Use 0% Tactical HUD 0 Map Filters NONE Filters NONE Steam 1 RUN: 8dc9b549-4a76-4948-85bb-c92dd0e4d13f